bitfinex/quotes_ETHUSD_20251006
["timestamp","ask_amount","ask_price","bid_price","bid_amount"]
[1759750972996,0.00120001,4578.6,4578.5,4.1024254]
[1759750973302,0.00120001,4578.6,4578.5,4.12426661]
[1759750975003,0.00120001,4578.6,4578.5,3.68006661]
[1759750975602,0.00120001,4578.6,4578.5,5.22472737]
[1759750975773,0.00120001,4578.6,4578.5,2.90611405]
[1759750976578,0.46300001,4578.6,4578.5,2.90611405]
[1759750976900,0.00120001,4578.6,4578.5,2.90611405]
[1759750977407,0.00120001,4578.6,4578.5,4.47261533]
[1759750977573,0.46300001,4578.6,4578.5,0.001]
[1759750977776,0.46220001,4578.6,4578.5,0.6346]
[1759750978188,0.46220001,4578.6,4578.5,0.001]
[1759750978796,0.46220001,4578.6,4578.5,2.81872143]
[1759750979793,0.46220001,4578.6,4578.5,2.84056264]
[1759750980601,0.00040001,4578.6,4578.5,5.05535099]
[1759750980918,0.00040001,4578.6,4578.5,4.04261185]
[1759750981215,0.00040001,4578.6,4578.5,4.12999436]
[1759750981615,0.00040001,4578.6,4578.5,3.68579436]
[1759750981796,0.00040001,4578.6,4578.5,3.0680066]
[1759750981797,0.46220001,4578.6,4578.5,3.0680066]
[1759750981996,0.46220001,4578.6,4578.5,2.31053367]
[1759750982321,0.46220001,4578.6,4578.5,2.92832143]
[1759750982918,0.46220001,4578.6,4578.5,0.7442]
[1759750983292,0.46220001,4578.6,4578.5,2.92832143]
[1759750983490,0.46220001,4578.6,4578.5,0.7442]
[1759750984488,0.46220001,4578.6,4578.5,2.92832143]
[1759750985720,0.46220001,4578.6,4578.5,0.7442]
[1759750986018,0.46220001,4578.6,4578.5,2.92832143]
[1759750986225,0.00040001,4578.6,4578.5,2.92832143]
[1759750986922,0.00040001,4578.6,4578.5,5.52262363]
[1759750987225,0.00040001,4578.6,4578.5,5.6323468]
[1759750987523,0.00040001,4578.6,4578.5,4.06588996]
[1759750987725,0.00040001,4578.6,4578.5,4.08773117]
[1759750989899,0.00040001,4578.6,4578.5,3.59838996]
[1759750991729,0.47100001,4578.6,4578.5,3.59838996]
[1759750992024,0.00040001,4578.6,4578.5,2.92832143]
[1759750992525,0.00040001,4578.6,4578.5,2.95016264]
[1759750992905,0.47100001,4578.6,4578.5,2.92832143]
[1759750993100,0.00040001,4578.6,4578.5,2.92832143]
[1759750993309,0.47100001,4578.6,4578.5,2.92832143]
[1759750993634,0.00040001,4578.6,4578.5,2.92832143]
[1759750996052,0.47100001,4578.6,4578.5,2.92832143]
[1759750996713,0.00040001,4578.6,4578.5,2.92832143]
[1759750996912,0.47100001,4578.6,4578.5,2.92832143]
[1759750997517,0.00040001,4578.6,4578.5,2.92832143]
[1759750998714,0.00040001,4578.6,4578.5,2.95016264]
[1759750998934,0.00040001,4578.6,4578.5,3.62025363]
[1759750999139,0.00040001,4578.6,4578.5,5.18678488]
[1759750999328,0.00040001,4578.6,4578.5,4.06591242]
[1759750999706,0.00040001,4578.6,4578.5,4.15329454]
[1759751000241,0.00040001,4578.6,4578.5,6.55329454]
[1759751000410,0.002,4578.9,4578.8,0.6336]
[1759751000618,0.002,4578.9,4578.8,11.42746292]
[1759751000811,0.002,4578.9,4578.8,11.98192314]
[1759751001118,0.002,4579.1,4578.8,11.98192314]
[1759751001119,0.002,4579.1,4579.0,2.81748294]
[1759751001537,0.002,4579.1,4579.0,8.41144994]
[1759751001740,0.002,4579.1,4579.0,8.88204994]
[1759751002041,0.002,4579.1,4579.0,10.36633835]
[1759751002350,0.0012,4579.1,4579.0,10.36633835]
[1759751003112,0.0012,4579.1,4579.0,7.63987135]
[1759751003522,0.0012,4579.1,4579.0,9.92005535]
[1759751009851,0.002,4579.3,4579.2,2.81738756]
[1759751010170,0.002,4579.3,4579.2,6.68960972]
[1759751010353,0.002,4579.3,4579.2,6.77657185]
[1759751010550,0.002,4579.3,4579.2,7.24407185]
[1759751011365,0.002,4579.3,4579.2,8.80378621]
[1759751012979,0.002,4579.6,4579.2,8.80378621]
[1759751012980,1e-08,4579.6,4579.2,6.15249865]
[1759751013270,0.4346,4580.5,4580.4,2.81681543]
[1759751013639,0.1088,4581.7,4580.4,0.1088]
[1759751013840,0.5434,4581.7,4581.1,0.6336]
[1759751014047,0.1088,4581.9,4581.5,0.6336]
[1759751014364,2.18178624,4583.5,4581.9,0.6336]
[1759751014681,2.18217163,4582.6,4581.7,0.6336]
[1759751014845,2.18217163,4582.6,4581.8,2.8161378]
[1759751015037,2.18217163,4582.6,4580.9,2.94739171]
[1759751015038,0.4346,4582.5,4582.0,2.18244295]
[1759751015246,0.4346,4582.4,4582.2,0.6336]
[1759751015548,0.4346,4582.3,4582.2,0.6336]
[1759751015989,0.4346,4582.3,4581.3,0.65498393]
[1759751016193,0.4346,4582.2,4580.8,2.18301674]
[1759751016397,0.4346,4582.1,4581.1,0.6336]
[1759751016556,0.4346,4582.0,4581.1,0.6336]
[1759751016899,0.4346,4582.0,4580.8,2.81658109]
[1759751016900,2.18254834,4581.8,4580.8,2.81658109]
[1759751017098,2.18221783,4582.5,4579.7,2.00032904]
[1759751017099,0.4346,4581.7,4579.7,4.6136665]
[1759751017261,0.4346,4581.6,4580.6,0.6336]
[1759751017579,2.61729436,4581.5,4580.8,0.6336]
[1759751017783,0.4346,4581.4,4580.7,0.6336]
[1759751017986,0.4346,4581.3,4580.7,0.6336]
[1759751018177,0.4346,4581.2,4580.3,0.6336]
[1759751018389,0.4346,4581.1,4580.4,0.6336]
[1759751018586,0.4346,4581.1,4580.6,0.6336]
[1759751018786,2.18281817,4581.3,4580.5,0.6336]
[1759751018787,0.4506,4581.0,4580.5,0.6336]
[1759751019098,0.4506,4581.0,4579.6,2.18355494]
[1759751019099,0.4506,4580.9,4580.1,2.18334638]
[1759751019402,2.18261417,4581.7,4580.0,0.6336]
[1759751019403,0.4506,4580.8,4580.0,0.6336]
[1759751019580,0.4506,4580.7,4580.0,2.81700248]
[1759751019982,0.4506,4580.6,4580.2,2.81690506]
[1759751020196,0.4506,4580.5,4580.1,0.6336]
[1759751020491,0.4506,4580.4,4580.2,0.6336]
[1759751021002,2.18300185,4580.9,4580.3,0.6336]
[1759751021403,2.18300185,4580.9,4580.2,0.6336]
[1759751021585,0.4506,4580.8,4580.2,0.6336]
[1759751021779,0.4506,4580.7,4580.2,0.6336]
[1759751021985,0.4506,4580.6,4579.9,0.6336]
[1759751022184,0.4506,4580.5,4579.9,2.81701603]
[1759751022704,0.4506,4581.1,4580.1,0.6336]
[1759751022905,0.4506,4580.6,4580.2,0.0218331]
[1759751023408,0.4506,4580.6,4580.2,2.83873167]
[1759751023611,2.18293357,4581.0,4580.2,2.83873167]
[1759751023811,0.4506,4580.9,4580.2,2.83873167]
[1759751024109,2.18259755,4581.7,4579.3,6.6126588]
[1759751024110,0.4506,4580.8,4580.4,0.6336]
[1759751024308,2.4,4582.4,4580.6,0.6336]
[1759751024309,0.4506,4580.7,4580.6,0.6336]
[1759751024520,0.4506,4580.7,4580.3,0.6336]
[1759751024896,0.4506,4580.6,4580.3,0.6336]
[1759751025428,0.1088,4580.9,4580.5,0.6336]
[1759751025612,0.4506,4580.6,4580.5,0.6336]
[1759751025808,0.1088,4580.9,4580.5,2.81676777]
[1759751025985,0.4506,4580.8,4580.5,0.6336]
[1759751026182,0.1088,4580.9,4580.6,0.6336]
[1759751026486,0.1088,4581.3,4580.9,0.6336]
[1759751026697,0.5586,4581.3,4580.9,0.65542977]
[1759751026887,0.5586,4581.3,4580.9,0.02182977]
[1759751027128,0.108,4581.3,4580.9,0.02182977]
[1759751027292,0.4506,4581.2,4581.1,0.6336]
[1759751028514,2.5088,4581.6,4581.1,0.6336]
[1759751028515,0.5594,4581.6,4581.1,0.6336]
[1759751028827,0.4506,4581.5,4581.1,0.6336]
[1759751029314,0.4506,4581.4,4581.1,0.6336]
[1759751030106,0.4506,4581.3,4581.1,0.6336]
[1759751030594,0.4506,4581.2,4580.8,0.6336]
[1759751030794,2.18301312,4580.9,4579.7,1.55846657]
[1759751031008,0.5594,4580.8,4580.2,0.1088]
[1759751031622,0.5594,4580.8,4580.3,0.6336]
[1759751031918,0.4506,4580.7,4580.3,2.8168547]
[1759751032103,0.4506,4580.7,4580.5,0.6336]
[1759751032509,0.4506,4580.7,4580.3,0.6336]
[1759751032706,0.1088,4580.8,4580.3,0.6336]
[1759751032909,0.4506,4580.7,4580.3,0.6336]
[1759751033416,0.4506,4580.6,4580.3,0.6336]
[1759751033616,0.4506,4580.5,4580.0,0.6336]
[1759751034314,0.4506,4580.5,4580.0,2.81699235]
[1759751034516,0.4506,4580.5,4580.2,0.6336]
[1759751034717,0.4506,4580.5,4580.1,0.02183358]
[1759751035421,0.4506,4580.5,4580.3,0.6336]
[1759751035589,0.1088,4580.8,4580.4,0.6336]
[1759751035792,0.4506,4580.7,4580.4,0.6336]
[1759751036615,0.4506,4580.7,4580.3,0.6336]
[1759751036799,0.1088,4580.8,4580.3,0.6336]
[1759751036999,2.18192028,4583.2,4580.3,0.6336]
[1759751037000,4.5827344,4581.5,4580.4,0.02183215]
[1759751037205,0.1088,4581.0,4580.4,0.02183215]
[1759751037400,0.1088,4581.0,4580.6,0.6336]
[1759751037604,0.1088,4581.0,4580.6,2.83854979]
[1759751037801,0.1088,4581.0,4580.6,0.0218312]
[1759751037990,0.1088,4581.0,4580.4,0.65543215]
[1759751038402,0.1088,4581.0,4580.6,0.6336]
[1759751038618,0.1088,4581.0,4580.4,0.02183215]
[1759751038807,0.1088,4581.0,4580.5,0.6336]
[1759751039002,0.1088,4581.0,4580.8,0.6336]
[1759751039924,0.1088,4581.0,4580.6,0.6554312]
[1759751040297,0.1088,4581.0,4580.6,0.0218312]
[1759751040604,0.1088,4581.0,4580.7,0.6336]
[1759751041015,0.1088,4581.0,4580.8,0.02183024]
[1759751041330,0.4506,4581.3,4580.7,0.6336]
[1759751041331,2.74221259,4581.3,4580.7,0.6336]
[1759751041628,0.1088,4581.3,4580.9,0.6336]
[1759751042025,0.1088,4581.3,4581.0,0.6336]
[1759751042516,0.1088,4581.3,4580.9,0.6336]
[1759751042722,2.29159446,4581.3,4580.9,0.6336]
[1759751043026,2.18288184,4581.1,4580.7,0.6336]
[1759751043227,0.4279,4581.2,4580.3,0.6336]
[1759751043429,0.1088,4581.0,4580.5,0.6336]
[1759751043803,2.61091665,4580.9,4580.5,0.6336]
[1759751044028,0.4279,4580.8,4580.5,0.6336]
[1759751044209,0.1088,4581.0,4580.5,0.6336]
[1759751044416,0.4279,4580.9,4580.5,0.6336]
[1759751044625,0.4279,4580.8,4580.5,0.6336]
[1759751044807,2.29173991,4581.0,4580.5,0.6336]
[1759751045013,2.18307255,4580.7,4580.5,0.6336]
[1759751045413,0.4279,4580.6,4580.4,0.1088]
[1759751045718,0.4279,4580.5,4579.9,0.1088]
[1759751046026,0.4279,4580.5,4579.9,2.29224289]
[1759751046329,0.4279,4580.5,4580.0,0.6336]
[1759751047041,0.1088,4580.6,4580.0,0.6336]
[1759751047904,2.29194376,4580.6,4580.0,0.6336]
[1759751048112,0.1088,4580.6,4580.0,0.6336]
[1759751050147,0.1088,4580.6,4580.2,0.6336]
[1759751050316,0.1088,4580.6,4580.3,0.02183263]
[1759751050517,0.1088,4580.6,4580.0,2.81698455]
[1759751051450,0.108,4580.6,4580.0,2.81698455]
[1759751051811,0.108,4580.6,4580.1,0.02183358]
[1759751052012,0.108,4580.6,4580.2,0.6336]
[1759751052212,0.108,4580.6,4580.3,0.02183263]
[1759751052626,2.4,4581.0,4580.4,0.1088]
[1759751052627,0.1088,4581.0,4580.4,0.1088]
[1759751052831,0.1088,4581.0,4580.5,0.6336]
[1759751053028,0.1088,4581.0,4580.5,1.0667]
[1759751053561,0.1088,4581.0,4580.5,0.6336]
[1759751053729,2.29173073,4581.0,4580.5,0.6336]
[1759751053934,0.1088,4581.0,4580.5,0.6336]
[1759751054642,2.29174129,4581.0,4580.5,0.6336]
[1759751055365,2.18302693,4580.8,4580.5,0.6336]
[1759751055966,2.61092693,4580.8,4580.5,0.6336]
[1759751056940,0.4279,4580.7,4580.5,0.6336]
[1759751057199,0.1088,4581.0,4580.5,0.6336]
[1759751057335,0.4279,4580.7,4580.1,0.6336]
[1759751057532,2.71979236,4580.7,4580.1,0.7424]
[1759751057983,0.4279,4580.6,4579.8,0.001]
[1759751058138,2.29219257,4580.1,4579.8,0.001]
[1759751058486,2.18341622,4580.0,4579.8,0.001]
[1759751058682,2.61131622,4580.0,4579.8,0.001]
[1759751058890,2.29216311,4580.1,4579.8,0.001]
[1759751059042,0.4279,4580.0,4579.8,0.001]
[1759751059243,2.61132936,4580.0,4579.8,0.001]
[1759751059443,2.18345378,4579.9,4579.8,0.001]
[1759751059739,5.21563358,4579.9,4579.8,0.001]
[1759751063375,5.01135378,4579.9,4579.8,0.001]
[1759751064080,5.21523956,4579.9,4579.8,0.001]
[1759751064248,5.01135378,4579.9,4579.8,0.001]
[1759751067190,5.21507969,4579.9,4579.8,0.001]
[1759751068990,5.21494664,4579.9,4579.8,0.001]
[1759751070199,6.52594664,4579.9,4579.8,0.001]
[1759751070506,9.84554993,4579.9,4579.8,0.001]
[1759751070887,9.84542834,4579.9,4579.8,0.001]
[1759751071083,9.22108876,4579.9,4579.8,0.001]
[1759751074871,9.22099334,4579.9,4579.8,0.001]
[1759751075695,8.79229334,4579.9,4579.8,0.001]
[1759751075901,9.24679334,4579.9,4579.8,0.001]
[1759751077578,9.35559334,4579.9,4579.8,0.001]
[1759751078278,4.78602963,4579.9,4579.8,0.001]
[1759751078477,4.89482963,4579.9,4579.8,0.001]
[1759751080497,8.90109334,4579.9,4579.8,0.001]
[1759751082198,9.35559334,4579.9,4579.8,0.001]
[1759751084598,4.89482963,4579.9,4579.8,0.001]
[1759751084909,8.90109334,4579.9,4579.8,0.001]
[1759751086240,8.90309334,4579.9,4579.8,0.001]
[1759751087025,8.90359006,4579.9,4579.8,0.001]
[1759751088720,9.35809006,4579.9,4579.8,0.001]
[1759751088926,9.35834528,4579.9,4579.8,0.001]
[1759751090100,9.82891785,4579.9,4579.8,0.001]
[1759751090434,4.58350146,4579.8,4579.3,1e-08]
[1759751090633,8.58995589,4579.4,4579.3,1e-08]
[1759751090933,8.90288368,4579.4,4579.3,1e-08]
[1759751091144,9.35738368,4579.4,4579.3,1e-08]
[1759751091538,2.18393063,4578.9,4578.5,0.001]
[1759751091742,6.39432213,4578.9,4578.5,0.001]
[1759751091917,6.50312213,4578.9,4578.5,0.001]
[1759751093824,2.49685842,4578.9,4578.5,0.4332]
[1759751095858,2.49685842,4578.9,4578.8,0.4332]
[1759751096027,2.49685842,4578.9,4578.8,0.001]
[1759751098355,2.49711644,4578.9,4578.8,0.001]
[1759751100141,2.49631644,4578.9,4578.8,0.4332]
[1759751100540,0.31318581,4578.9,4578.8,0.4332]
[1759751100729,2.49711644,4578.9,4578.8,0.4332]
[1759751100932,0.31318581,4578.9,4578.8,0.4332]
[1759751101166,2.49711644,4578.9,4578.8,0.4332]
[1759751101456,0.31318581,4578.9,4578.8,0.4332]
[1759751101639,2.49711644,4578.9,4578.8,0.4332]
[1759751101838,0.31318581,4578.9,4578.8,0.001]
[1759751102032,2.49711644,4578.9,4578.8,0.001]
[1759751103138,2.49711644,4578.9,4578.8,0.4459]
[1759751103541,0.31318581,4578.9,4578.8,0.4459]
[1759751103742,2.49711644,4578.9,4578.8,0.4459]
[1759751104752,0.31318581,4578.9,4578.8,0.4459]
[1759751105138,0.1088,4578.9,4578.8,0.4459]
[1759751105652,0.1088,4578.9,4578.8,0.001]
[1759751105653,2.29273063,4578.9,4578.8,0.001]
[1759751105956,2.29273063,4578.9,4578.8,0.4459]
[1759751106285,0.1088,4578.9,4578.8,0.4459]
[1759751106577,0.1088,4578.9,4578.8,0.70909479]
[1759751106938,0.1088,4578.9,4578.8,0.4459]
[1759751108661,0.1088,4578.9,4578.8,2.62987833]
[1759751108886,0.1088,4578.9,4578.8,0.4459]
[1759751109161,0.1088,4579.2,4578.9,0.6336]
[1759751109334,0.1088,4579.2,4579.0,0.4449]
[1759751109954,0.1088,4579.2,4579.1,0.4449]
[1759751110262,0.1088,4579.2,4578.9,0.4449]
[1759751110464,0.1088,4579.2,4579.0,0.4449]
[1759751110653,0.1088,4579.2,4579.1,0.4449]
[1759751111457,0.002,4579.4,4579.1,0.4449]
[1759751111458,0.002,4579.4,4579.2,2.18374997]
[1759751111655,0.1108,4579.4,4579.1,0.70788306]
[1759751111962,0.1108,4579.4,4579.2,2.62868756]
[1759751112464,0.1108,4579.4,4579.3,0.4449]
[1759751112669,0.1108,4579.4,4579.3,2.62863987]
[1759751112868,0.1108,4579.4,4579.3,0.4449]
[1759751113952,0.1108,4579.4,4579.3,0.73625609]
[1759751114152,0.1108,4579.4,4579.3,1.36985609]
[1759751114353,0.1108,4579.4,4579.3,3.55359596]
[1759751114975,0.1108,4579.4,4579.3,3.66239596]
[1759751114976,0.002,4579.4,4579.3,3.66239596]
[1759751115451,0.002,4579.9,4579.4,0.6336]
[1759751115660,0.002,4579.9,4579.8,2.81710146]
[1759751115860,0.002,4579.9,4579.8,5.23893647]
[1759751116058,0.002,4579.9,4579.8,7.22046803]
[1759751116268,0.002,4579.9,4579.8,3.26200146]
[1759751116475,0.002,4579.9,4579.8,3.28383647]
[1759751116649,0.002,4579.9,4579.8,4.03212036]
[1759751117245,0.002,4579.9,4579.8,26.91148736]
[1759751117450,0.002,4580.4,4580.3,2.8168631]
[1759751117847,0.002,4580.4,4580.3,4.42922777]
[1759751118248,0.002,4580.4,4580.3,3.2617631]
[1759751118487,0.002,4580.4,4580.3,3.92301932]
[1759751120353,0.002,4580.4,4580.3,6.32301932]
[1759751121279,0.002,4580.4,4580.3,7.48708971]
[1759751122356,0.002,4580.4,4580.3,6.32301932]
[1759751122552,0.002,4580.9,4580.3,6.32301932]
[1759751122553,0.002,4580.9,4580.5,0.6336]
[1759751122759,0.002,4580.9,4580.8,5.21662479]
[1759751123267,0.002,4580.9,4580.8,5.66152479]
[1759751124750,0.0012,4580.9,4580.8,5.66152479]
[1759751124985,0.0012,4580.9,4580.8,0.6336]
[1759751125180,0.0012,4580.9,4580.7,2.18306992]
[1759751125480,0.0012,4580.9,4580.8,2.81662479]
[1759751125677,0.0012,4580.9,4580.8,0.6336]
[1759751125985,0.0012,4580.9,4580.6,0.1088]
[1759751125986,0.4291,4580.9,4580.6,0.1088]
[1759751126188,0.4291,4580.9,4580.4,0.1088]
[1759751126189,0.4279,4580.8,4580.4,0.1088]
[1759751126349,0.4279,4580.8,4580.5,0.6336]
[1759751126559,0.4279,4580.8,4580.7,2.81666604]
[1759751127586,0.4279,4580.8,4580.7,0.6336]
[1759751127997,0.4279,4580.8,4580.7,2.81667245]
[1759751128277,0.0012,4580.9,4580.7,2.81667245]
[1759751128278,0.0012,4580.9,4580.8,2.81662479]
[1759751128677,0.4291,4580.9,4580.8,0.6336]
[1759751129081,0.4291,4580.9,4580.5,0.6336]
[1759751129266,0.4279,4580.8,4580.5,0.6336]
[1759751129588,0.4279,4580.7,4580.6,2.8167201]
[1759751130085,0.4279,4580.7,4580.3,0.1088]
[1759751130290,0.0012,4580.9,4580.4,0.6336]
[1759751130590,0.0012,4580.9,4580.8,2.18302479]
[1759751130790,0.0012,4580.9,4580.8,5.653244]
[1759751130990,0.0012,4580.9,4580.8,5.762044]
[1759751132189,0.0012,4580.9,4580.8,1.17901921]
[1759751132490,0.0012,4580.9,4580.8,0.6336]
[1759751132661,0.4291,4580.9,4580.8,0.6336]
[1759751132866,0.0012,4580.9,4580.8,2.81662479]
[1759751135500,0.0012,4580.9,4580.8,3.25872479]
[1759751135664,0.0012,4580.9,4580.8,2.81662479]
[1759751136097,0.4318,4580.9,4580.8,2.81662479]
[1759751136294,0.0012,4580.9,4580.8,2.81662479]
[1759751136687,0.0012,4580.9,4580.8,0.6336]
[1759751136992,0.4318,4580.9,4580.8,0.6336]
[1759751137172,0.0012,4580.9,4580.8,2.81662479]
[1759751139286,0.0012,4580.9,4580.8,0.6336]
[1759751139481,0.4318,4580.9,4580.8,2.81662479]
[1759751139687,0.0012,4580.9,4580.8,2.81662479]
[1759751140716,0.0012,4580.9,4580.8,3.32747695]
[1759751142071,0.0012,4580.9,4580.8,3.34930719]
[1759751142583,0.0012,4580.9,4580.8,3.79140719]
[1759751142784,0.0012,4580.9,4580.8,3.34930719]
[1759751142971,0.0012,4580.9,4580.8,6.16957695]
[1759751143582,0.0012,4580.9,4580.8,3.32747695]
[1759751143779,0.0012,4580.9,4580.8,1.14445216]
[1759751144082,0.0012,4580.9,4580.8,2.81662479]
[1759751144687,0.0012,4580.9,4580.8,2.83845503]
[1759751145115,0.0012,4580.9,4580.8,0.6336]
[1759751145415,0.0012,4580.9,4580.8,2.81662479]
[1759751145919,0.0012,4580.9,4580.8,0.6336]
[1759751146284,0.0012,4580.9,4580.7,3.35418544]
[1759751146484,0.0012,4580.9,4580.6,3.35422711]
[1759751146684,0.4318,4580.9,4580.6,1.17111497]
[1759751146922,0.4318,4580.9,4580.7,2.18303558]
[1759751146923,0.0012,4580.9,4580.7,2.18303558]
[1759751147123,0.0012,4580.9,4580.6,3.35423102]
[1759751147352,0.0012,4580.9,4580.6,3.35423143]
[1759751147521,0.0012,4580.9,4580.6,1.17111497]
[1759751147701,0.4306,4580.8,4580.3,0.6346]
[1759751147906,0.4306,4580.7,4580.3,1.80571497]
[1759751148087,0.4306,4580.6,4580.3,1.80571497]
[1759751148285,0.0012,4580.9,4580.3,0.6346]
[1759751148286,0.4318,4580.9,4580.3,0.6346]
[1759751148629,0.4318,4580.9,4580.5,0.6336]
[1759751148798,0.4306,4580.8,4580.4,0.6336]
[1759751149115,0.4298,4580.7,4580.4,0.6336]
[1759751149316,2.18421739,4580.9,4580.3,0.6346]
[1759751149513,0.0012,4580.9,4580.3,0.6346]
[1759751149813,0.0012,4580.9,4580.3,0.001]
[1759751149814,2.18312555,4580.6,4580.3,0.001]
[1759751150008,2.18419097,4580.9,4580.3,0.001]
[1759751150186,0.0012,4580.9,4580.3,0.001]
[1759751150894,2.18302479,4580.8,4580.3,0.001]
[1759751151088,2.18314431,4580.6,4580.3,0.001]
[1759751151518,0.4306,4580.7,4580.3,0.001]
[1759751151519,0.4306,4580.5,4580.3,0.001]
[1759751151885,0.4306,4580.4,4580.3,0.001]
[1759751152287,0.4318,4580.9,4580.3,0.001]
[1759751152687,2.18306059,4580.8,4580.3,0.001]
[1759751152888,0.1088,4580.4,4580.3,0.001]
[1759751153596,2.72261543,4580.4,4580.3,0.001]
[1759751156622,5.20061543,4580.4,4580.3,0.001]
[1759751160406,2.29201543,4580.4,4580.3,0.001]
[1759751160610,5.20061543,4580.4,4580.3,0.001]
[1759751161429,3.0174,4580.4,4580.3,0.001]
[1759751161724,0.1088,4580.4,4580.3,0.001]
[1759751161931,1.0998,4580.4,4580.3,0.001]
[1759751162530,2.5868,4580.4,4580.3,0.001]
[1759751163207,0.1088,4580.4,4580.3,0.001]
[1759751163603,5.20331543,4580.4,4580.3,0.001]
[1759751163826,2.72531543,4580.4,4580.3,0.001]
[1759751164134,5.20231543,4580.4,4580.3,0.001]
[1759751165111,3.0191,4580.4,4580.3,0.001]
[1759751165305,5.20231543,4580.4,4580.3,0.001]
[1759751167342,7.60231543,4580.4,4580.3,0.001]
[1759751167544,7.80602863,4580.4,4580.3,0.001]
[1759751167713,12.43585598,4580.4,4580.3,0.001]
[1759751172307,12.52326407,4580.4,4580.3,0.001]
[1759751172542,10.04626407,4580.4,4580.3,0.001]
[1759751172838,12.52326407,4580.4,4580.3,0.001]
[1759751173652,12.52246407,4580.4,4580.3,0.001]
[1759751173844,12.52146407,4580.4,4580.3,0.001]
[1759751174654,18.16265836,4580.4,4580.3,0.001]
[1759751175027,18.63207689,4580.4,4580.3,0.001]
[1759751175232,18.52182043,4580.4,4580.3,0.001]
[1759751176238,18.05246407,4580.4,4580.3,0.001]
[1759751178254,18.52182158,4580.4,4580.3,0.001]
[1759751178452,18.5218135,4580.4,4580.3,0.001]
[1759751182246,18.5218135,4580.4,4579.8,0.001]
[1759751182247,2.18345378,4579.9,4579.8,0.001]
[1759751182449,12.00178625,4579.9,4579.8,0.001]
[1759751182663,12.43508625,4579.9,4579.8,0.001]
[1759751182859,13.74608625,4579.9,4579.8,0.001]
[1759751183170,13.83345593,4579.9,4579.8,0.001]
[1759751184374,16.13045593,4579.9,4579.8,0.001]
[1759751185577,20.35045593,4579.9,4579.8,0.001]
[1759751190382,18.05345593,4579.9,4579.8,0.001]
[1759751191574,3.49450146,4579.8,4579.3,0.001]
[1759751191782,6.92231953,4579.4,4579.3,0.001]
[1759751191985,9.39931953,4579.4,4579.3,0.001]
[1759751192398,9.83351953,4579.4,4579.3,0.001]
[1759751193159,9.21110707,4579.4,4579.3,0.001]
[1759751193567,11.61110707,4579.4,4579.3,0.001]
[1759751194856,9.13410707,4579.4,4579.3,0.001]
[1759751195071,11.61110707,4579.4,4579.3,0.001]
[1759751195468,11.61010707,4579.4,4579.3,0.001]
[1759751197260,2.77003546,4580.3,4579.3,0.001]
[1759751197461,0.47022054,4580.2,4579.3,0.4356]
[1759751197661,2.476,4580.1,4579.3,0.4356]
[1759751197969,2.18353923,4579.8,4579.3,0.4356]
[1759751198179,4.65875072,4579.7,4579.3,0.4356]
[1759751198389,2.1836445,4579.5,4579.4,0.4346]
[1759751198554,2.18369218,4579.4,4579.3,0.001]
[1759751198753,4.65969218,4579.4,4579.3,0.001]
[1759751199182,4.65969218,4579.4,4579.3,0.4356]
[1759751199707,4.65969218,4579.4,4579.3,0.001]
[1759751200766,4.65969218,4579.4,4579.3,0.4356]
[1759751201097,2.18369218,4579.4,4579.3,0.4356]
[1759751201294,4.65969218,4579.4,4579.3,0.4356]
[1759751201760,4.00741489,4580.0,4579.3,0.4356]
[1759751201959,2.18355895,4579.7,4579.3,0.4356]
[1759751202159,4.00741489,4580.0,4579.3,0.4356]
[1759751202379,2.476,4579.9,4579.3,0.4356]
[1759751202661,2.18369218,4579.4,4579.3,0.4356]
[1759751203001,4.65969218,4579.4,4579.3,0.4356]
[1759751203503,4.86408656,4579.4,4579.3,0.4356]
[1759751203714,2.68039438,4579.4,4579.3,0.4356]
[1759751204915,0.002,4580.4,4579.3,0.4356]
[1759751205219,1.901,4580.3,4579.3,0.4356]
[1759751205378,0.2044018,4580.2,4579.4,0.26194237]
[1759751205583,2.478,4580.1,4579.5,0.4346]
[1759751206794,0.002,4580.4,4579.5,0.4346]
[1759751206989,2.478,4580.3,4579.5,0.4346]
[1759751207412,0.1088,4579.7,4579.5,0.4346]
[1759751207586,0.1088,4579.7,4579.5,2.88017163]
[1759751207990,0.1088,4579.7,4579.6,0.4346]
[1759751210084,0.1108,4579.7,4579.6,0.4346]
[1759751216411,0.002,4579.7,4579.6,3.25179682]
[1759751218959,0.002,4579.7,4579.6,1.0682]
[1759751219124,0.002,4579.7,4579.6,3.25179682]
[1759751219631,0.002,4579.7,4579.6,1.62272876]
[1759751220216,0.002,4579.7,4579.4,0.1088]
[1759751220422,0.002,4579.7,4579.5,0.4346]
[1759751220729,0.1108,4579.7,4579.5,0.4346]
[1759751220930,0.1108,4579.7,4579.6,0.4346]
[1759751221135,0.1108,4579.7,4579.3,0.4356]
[1759751221321,0.1108,4579.7,4579.4,0.4346]
[1759751221863,2.18369218,4579.4,4579.3,0.001]
[1759751222230,2.29249218,4579.4,4579.3,0.001]
[1759751222621,2.75939218,4579.4,4579.3,0.001]
[1759751227078,2.48,4579.7,4579.3,0.001]
[1759751227366,0.1088,4579.4,4579.3,0.001]
[1759751227925,2.29249218,4579.4,4579.3,0.001]
[1759751229773,2.75779218,4579.4,4579.3,0.001]
[1759751230731,5.23479218,4579.4,4579.3,0.001]
[1759751230976,5.43877202,4579.4,4579.3,0.001]
[1759751231133,9.44618691,4579.4,4579.3,0.001]
[1759751234151,11.84618691,4579.4,4579.3,0.001]
[1759751235835,15.8536018,4579.4,4579.3,0.001]
[1759751236659,20.0736018,4579.4,4579.3,0.001]
[1759751236864,16.06618691,4579.4,4579.3,0.001]
[1759751237270,20.0736018,4579.4,4579.3,0.001]
[1759751237855,16.06618691,4579.4,4579.3,0.001]